Cogmind - Beta 15 @@@ ROGUE MODE // 2025.10.04 @ 16:21:36 Player: rapskalian Result: Destroyed by P-60 Hacker with Shock Rifle Performance ------------- Evolutions (4) 2000 Regions Visited (5) 1000 Robots Destroyed (111) 555 Value Destroyed (3847) 3847 Prototype IDs (3) 60 Alien Tech Used (0) 0 Bonus (0) 0 TOTAL SCORE: 7462 Bonus ------- None Cogmind --------- Core Integrity 0/850 Matter 72/300 Energy 95/100 System Corruption 8% Temperature Cool (0) Movement Core (1400) Ox27 Location -6/Factory Parts ------- > --- POWER (2) -------- (None) > --- PROPULSION (4) --- (None) > --- UTILITY (7) ------ Huge Storage Unit Improved Signal Interpreter Launcher Guidance Computer > --- WEAPON (2) ------- Great Axe > --- INVENTORY (25) --- Advanced Heat Sink Improved Cooling System Improved Terrain Scan Processor Phase Shifter Heavy Armor Plating Hacking Suite Recalibrator High-powered Shock Rifle Scatter Rocket Array Scatter Rocket Array Remote Datajack Katana Peak State ------------ > --- POWER ------------ Improved Deuterium Engine Fission Core > --- PROPULSION ------- Armored Huge Wheel Armored Huge Wheel > --- UTILITY ---------- Improved Cooling System Huge Storage Unit Advanced Sensor Array Improved Signal Interpreter Improved Particle Charger Transmission Jammer Improved Hacking Suite > --- WEAPON ----------- Scatter Rocket Array Great Axe > --- INVENTORY -------- Micro Nuclear Core Fission Core Wheel Wheel Armored Huge Wheel Armored Huge Wheel Improved Sensor Array Advanced Sensor Array Launcher Guidance Computer Heavy Armor Plating Improved Light Armor Plating Hacking Suite Recalibrator Heavy Particle Gun Heavy Laser Heavy Laser Heavy Particle Cannon Heavy Particle Cannon Ion Cannon Gauss Rifle Remote Datajack Katana [Rating: 70] Favorites ----------- Power Micro Nuclear Core Engine Improved Ion Engine Power Core Micro Nuclear Core Propulsion Armored Huge Wheel Treads Light Treads Leg Aluminum Leg Wheel Armored Huge Wheel Utility Huge Storage Unit Device Improved Sensor Array Storage Huge Storage Unit Processor Improved Signal Interpreter Hackware Improved Hacking Suite Protection Utility Shielding Weapon Heavy Laser Energy Gun Heavy Laser Energy Cannon Heavy Particle Cannon Ballistic Gun Assault Rifle Launcher Improved Proton Missile Launcher Special Weapon Plasma Cutter Slashing Weapon Great Axe Special Melee Weapon Datajack Build | -11 -10 -9 -8 -7 -6 ------- Run | Yrd Mat Mat Mat Fac Fac Slots Evolved 8 | . . 2 2 2 2 Power 1 | . . . . . 1 Propulsion 2 | . . 1 . 1 . Utility 5 | . . 1 2 1 1 Weapon . | . . . . . . Parts Attached 95 | 6 2 13 22 26 26 Power 14 | 1 . 1 4 2 6 Engine 7 | 1 . 1 3 . 2 Core 7 | . . . 1 2 4 Reactor . | . . . . . . Propulsion 16 | 2 . 2 6 3 3 Treads 1 | . . . . 1 . Leg 6 | 2 . 2 2 . . Wheel 9 | . . . 4 2 3 Hover . | . . . . . . Flight . | . . . . . . Utility 34 | 1 2 3 7 11 10 Device 15 | . . 2 1 7 5 Storage 3 | 1 1 . 1 . . Processor 6 | . . . 2 3 1 Hackware 1 | . . . . . 1 Protection 9 | . 1 1 3 1 3 Artifact . | . . . . . . Weapon 31 | 2 . 7 5 10 7 Energy Gun 8 | . . . 1 5 2 Energy Cannon 4 | . . 1 2 1 . Ballistic Gun 9 | 2 . 5 1 1 . Ballistic Cannon . | . . . . . . Launcher 5 | . . . . . 5 Special Weapon 2 | . . . 1 1 . Impact Weapon . | . . . . . . Slashing Weapon 2 | . . . . 2 . Piercing Weapon . | . . . . . . Special Melee Weapon 1 | . . 1 . . . Unidentified Prototypes 3 | . . 1 1 . 1 Parts Lost 43 | . . 5 4 6 28 Power 9 | . . 2 2 . 5 Propulsion 12 | . . 2 2 1 7 Utility 14 | . . . . 4 10 Weapon 8 | . . 1 . 1 6 Highest Loss Streak 8 | . . 3 1 2 8 To Critical Strikes . | . . . . . . Average Backups 17 | 3 7 8 14 21 19 Power . | . 1 . . 1 . Propulsion 4 | 2 4 4 3 4 3 Utility 5 | . . . 2 6 7 Weapon 6 | . 1 1 6 8 7 Tool/Special . | . . . . . . Unused Backups 20 | . . 4 . 9 7 Power 3 | . . 1 . 1 1 Propulsion 5 | . . 2 . 3 . Utility 5 | . . . . 1 4 Weapon 7 | . . 1 . 4 2 Tool/Special . | . . . . . . Average Slot Usage (%) 87 | . 88 93 90 88 83 Engine 2 | . 14 8 4 . . Core 6 | . . . 1 7 10 Leg 6 | . 28 30 8 . . Wheel 12 | . . . 15 17 12 Device 13 | . . 5 6 11 19 Storage 7 | . 14 11 9 7 6 Processor 7 | . . . 10 8 8 Protection 11 | . 3 15 16 16 7 Energy Gun 4 | . . . 3 7 3 Energy Cannon 3 | . . 4 8 2 3 Ballistic Gun 4 | . 28 17 4 1 . Slashing Weapon 2 | . . . . . 4 Peak Build Rating 70 | 6 7 15 27 54 70 Average Rating 43 | 4 6 11 21 44 62 On Entrance 16 | . 6 7 10 25 53 Naked Turns . | . . . . . . Heaviest Build 142 | 14 20 25 104 109 142 Greatest Support 56 | 20 20 33 36 56 56 Greatest Overweight (x) 30 | . . . 4 3 30 Average Overweight (x) 1 | . . . 2 1 2 Largest Inventory Capacity 25 | 8 10 10 25 25 25 Average Capacity 21 | 6 9 10 19 25 25 Most Carried 25 | 6 9 10 25 25 25 Average Carried 19 | 4 7 8 14 23 22 Final Capacity 25 | 8 10 10 25 25 25 Final Carried 24 | 6 9 6 24 23 13 Class Distribution -------------------- 93% | Mutant 6% | Skirmisher Dominant Class ---------------- Mutant | -10/Materials Mutant | -9/Materials Mutant | -8/Materials Mutant | -7/Factory Mutant | -6/Factory Resources | -11 -10 -9 -8 -7 -6 ----------- Run | Yrd Mat Mat Mat Fac Fac Matter Collected 2364 | 183 191 625 367 552 446 Remotely . | . . . . . . Salvage Created 4074 | . 232 953 583 1079 1227 Parts 254 | . 15 65 45 67 62 Haulers Intercepted 2 | . 1 1 . . . Recyclers Shooed 3 | . 2 . 1 . . Parts Field Recycled . | . . . . . . Retrieved Matter . | . . . . . . Parts Self-Destructed . | . . . . . . Prevented . | . . . . . . Kills | -11 -10 -9 -8 -7 -6 ------- Run | Yrd Mat Mat Mat Fac Fac Combat Hostiles Destroyed 88 | . 2 27 17 20 22 Melee 7 | . . . . . 7 Guns 56 | . 2 25 8 16 5 Cannons 17 | . . 2 9 3 3 AOE 6 | . . . . . 6 Classes Destroyed 14 | . 5 4 1 3 1 Worker 6 | . . 1 4 1 . Builder 4 | . . . . 3 1 Tunneler 1 | . . 1 . . . Hauler 2 | . 1 1 . . . Recycler 2 | . 1 . . 1 . Operator 1 | . 1 . . . . Watcher 7 | . 2 . 2 2 1 Swarmer 26 | . . 10 12 4 . Grunt 25 | . 2 11 2 4 6 Duelist 1 | . . . . 1 . Sentry 11 | . . 6 1 . 4 Specialist 4 | . . . . . 4 Hunter 9 | . . . 2 4 3 Programmer 12 | . . . . 7 5 Best Kill Streak 9 | . 3 5 4 9 4 Combat Bots Only 5 | . 2 5 4 5 4 Max Kills in Single Turn 4 | . 1 1 1 4 2 Gunslinging . | . . . . . . Exploded 2 | . . . . . 2 Melee 1 | . . . . . 1 Uniques/NPCs Destroyed . | . . . . . . Combat | -11 -10 -9 -8 -7 -6 -------- Run | Yrd Mat Mat Mat Fac Fac Hostile Shots Fired 911 | . 4 160 107 124 516 Missed 289 | . 2 53 35 26 173 Hits 622 | . 2 107 72 98 343 Melee 1 | . . . . 1 . Projectile 621 | . 2 107 72 97 343 Critical Strikes 15 | . . 3 . 6 6 Actively Blocked 1 | . . . . 1 . Part Disruptions 3 | . . . . 2 1 Damage Taken 8108 | . 21 1180 787 1906 4214 Core 1399 | . . 188 125 232 854 Absorbed by Shields . | . . . . . . Redirected to Shielding 92 | . . 59 2 31 . Ignored by Resistances 227 | . . . . . 227 Regen/Repaired (Parts) 694 | . . 70 . 624 . Core Remaining (%) 79 | 100 100 53 77 66 . Volleys Fired 297 | . 16 77 73 75 56 Largest 2 | . 2 2 2 2 2 Hottest 150 | . 40 91 115 149 150 Shots Fired 552 | . 32 148 136 139 97 Gun 411 | . 32 141 61 122 55 Cannon 118 | . . 7 67 16 28 Launcher 11 | . . . . . 11 Special 12 | . . . 8 1 3 Kinetic 222 | . 32 141 37 12 . Thermal 310 | . . 7 99 122 82 Explosive 3 | . . . . . 3 Electromagnetic 13 | . . . . 4 9 Robot Hit Streak 15 | . 8 14 13 12 15 Robot Miss Streak 7 | . 2 7 4 5 7 Penetration Max 1 | . . . 1 . . Secondary Targets 6 | . . 5 . 1 . Max Gunslinging Chain 1 | . . 1 . 1 . Shots Hit Robots 387 | . 21 95 73 91 107 Core Hits 183 | . 11 48 32 42 50 Critical Kills . | . . . . . . Critical Parts Destroyed 2 | . . 1 1 . . Critical Strikes 14 | . . 1 1 2 10 Burn 3 | . . . . 2 1 Destroy 2 | . . 1 1 . . Sever 9 | . . . . . 9 Melee Attacks 134 | . . 2 . 12 120 Impact . | . . . . . . Slashing 132 | . . . . 12 120 Piercing . | . . . . . . Sneak Attacks 2 | . . 2 . . . Combat Hostiles . | . . . . . . Follow-up Attacks . | . . . . . . Damage Inflicted 9252 | 1 301 1388 1511 2286 3765 Guns 4919 | . 301 1283 785 1710 840 Cannons 1560 | . . 101 713 249 497 Explosions 1190 | . . . 8 297 885 Melee 1543 | . . . . . 1543 Ramming 40 | 1 . 4 5 30 . Kinetic 2136 | . 301 1283 406 146 . Thermal 4636 | . . 101 1092 2106 1337 Explosive 598 | . . . . . 598 Electromagnetic 299 | . . . 8 4 287 Impact . | . . . . . . Slashing 1543 | . . . . . 1543 Piercing . | . . . . . . Highest Corruption 8 | . . 2 . 8 8 Average Corruption 3 | . . 2 . 4 3 Corruption Purged 5 | . . . . 5 . Corruption Blocked . | . . . . . . Effects 84 | . . 3 . 38 43 Message Errors 24 | . . 1 . 12 11 Matter Fused 21 | . . . . 8 13 Heat Flow Errors 7 | . . . . 4 3 Energy Discharges 8 | . . 1 . 4 3 Parts Rejected 1 | . . . . 1 . Data Loss (minor) 12 | . . 1 . 4 7 Data Loss (major) 5 | . . . . 2 3 Misfires 2 | . . . . 2 . Alerts 2 | . . . . . 2 Weapon Failures 2 | . . . . 1 1 Overload Shots . | . . . . . . Overflow Damage 207 | . . . 5 122 80 Projectiles 68 | . . . 5 35 28 Explosions 111 | . . . . 87 24 Melee 28 | . . . . . 28 Knockbacks . | . . . . . . Impact . | . . . . . . Kinetic . | . . . . . . Secondary . | . . . . . . Self-Inflicted Damage 477 | . . . 41 63 373 Shots 18 | . . . 1 1 16 Rammed 1 | . . . . 1 . Targets Rammed 7 | 1 . 3 2 1 . Kicked 6 | 1 . 3 2 . . Crushed . | . . . . . . Highest Temperature 444 | . . 90 444 390 393 Average Temperature 94 | . . 24 84 119 68 Received Heat Transfer 1431 | . 12 492 90 225 612 Effects 3 | . . . 2 1 . Shutdowns 1 | . . . 1 . . Energy Bleed 2 | . . . 1 1 . Siege Activations . | . . . . . . Martial Activations . | . . . . . . Shielding Activations . | . . . . . . Robots Disrupted 1 | . . . 1 . . Combat Hostiles . | . . . . . . Robots Corrupted . | . . . . . . Combat Hostiles . | . . . . . . Parts Fried 4 | . . . . 2 2 Impact Corruptions . | . . . . . . Robots Melted 2 | . . . . 1 1 Combat Hostiles 2 | . . . . 1 1 Parts Melted 27 | . . . 6 6 15 Heat Transferred 7789 | . . 185 1887 3497 2220 Parts Sabotaged . | . . . . . . Parts Stolen . | . . . . . . Parts Stripped . | . . . . . . Power Chain Reactions . | . . . . . . Alert | -11 -10 -9 -8 -7 -6 ------- Run | Yrd Mat Mat Mat Fac Fac Maximum Alert Level 1 | . . 1 1 1 1 Low Security (%) 77 | 100 100 71 91 38 95 Level 1 22 | . . 28 8 61 4 Level 2 . | . . . . . . Level 3 . | . . . . . . Level 4 . | . . . . . . Level 5 . | . . . . . . High Security . | . . . . . . Max Security . | . . . . . . Peak Influence 397 | . 41 397 215 364 274 Initial 177 | . . . 154 70 177 Average 117 | . 10 130 139 188 73 Influence Increases 2957 | . 72 717 530 754 884 Destroy 0b10 Robot/C 1760 | . 40 540 340 400 440 Destroy 0b10 Robot/NC 115 | . 25 15 30 35 10 Destroy Leader 488 | . 6 142 64 134 142 Successful Hack 15 | . . 3 . 12 . Disable Machine 240 | . . . 60 105 75 Destroy Structure 219 | . 1 2 21 23 172 Lose Combat Pursuer 120 | . . 15 15 45 45 Influence Decreases 2697 | . 72 350 743 544 988 Entered New Map 484 | . . . 213 84 187 Time Decay 1823 | . 72 300 490 420 541 Lost Part 390 | . . 50 40 40 260 Squads Dispatched 32 | . . 3 . 12 17 Investigation 2 | . . 1 . 1 . Extermination 13 | . . . . 6 7 Reinforcement 8 | . . 2 . 2 4 Assault . | . . . . . . Garrison 9 | . . . . 3 6 Intercept . | . . . . . . Searches Triggered . | . . . . . . Construction Impeded 1 | . . 1 . . . Haulers Reinforced 1 | . . . . . 1 Active Scanning Responses . | . . . . . . Cargo Convoy Interrupts . | . . . . . . Stealth | -11 -10 -9 -8 -7 -6 --------- Run | Yrd Mat Mat Mat Fac Fac Distress Signals 11 | . . 5 3 3 . Communications Jammed 4 | . . . . 1 3 Distress Signals . | . . . . . . Times Spotted 130 | . 6 37 26 28 33 Peak Tracking Total 7 | . 2 7 5 6 4 Tactical Retreats 7 | . . 1 1 2 3 Traps | -11 -10 -9 -8 -7 -6 ------- Run | Yrd Mat Mat Mat Fac Fac Traps Triggered 6 | . . 1 1 4 . Indirectly . | . . . . . . Trap Hack Attempts . | . . . . . . Triggered . | . . . . . . Disarmed . | . . . . . . Reprogrammed . | . . . . . . Reused . | . . . . . . Traps Extracted . | . . . . . . Installed . | . . . . . . Triggered . | . . . . . . Machines | -11 -10 -9 -8 -7 -6 ---------- Run | Yrd Mat Mat Mat Fac Fac Machines Disabled 16 | . . . 4 7 5 Max in Single Turn 7 | . . . 2 7 1 Machines Repaired . | . . . . . . Machines Dismantled . | . . . . . . Machines Sabotaged . | . . . . . . Overloaded Fab Kills . | . . . . . . Hacking | -11 -10 -9 -8 -7 -6 --------- Run | Yrd Mat Mat Mat Fac Fac Machines Accessed 10 | . 1 3 1 3 2 Terminals 5 | . 1 2 . 1 1 Fabricators 2 | . . . . 1 1 Repair Stations 3 | . . 1 1 1 . Recycling Units . | . . . . . . Scanalyzers . | . . . . . . Garrison Access . | . . . . . . Total Hacks 20 | . 2 5 1 10 2 Successful 12 | . 1 2 . 8 1 Failed 8 | . 1 3 1 2 1 Catastrophic 2 | . . 1 . . 1 Database Lockouts . | . . . . . . Manual . | . . . . . . Terminals 7 | . 2 2 . 2 1 Fabricators 2 | . . . . 1 1 Repair Stations 11 | . . 3 1 7 . Recycling Units . | . . . . . . Scanalyzers . | . . . . . . Garrison Access . | . . . . . . Terminal Hacks 2 | . 1 . . . 1 Alert Level 1 | . . . . . 1 Zone Layout 1 | . 1 . . . . Fabricator Hacks 1 | . . . . 1 . Network Status 1 | . . . . 1 . Repair Station Hacks 9 | . . 2 . 7 . Scan Component 5 | . . 1 . 4 . Repair 4 | . . 1 . 3 . Recycling Unit Hacks . | . . . . . . Scanalyzer . | . . . . . . Garrison Access Hacks . | . . . . . . Unauthorized Hacks . | . . . . . . Terminals . | . . . . . . Fabricators . | . . . . . . Repair Stations . | . . . . . . Recycling Units . | . . . . . . Scanalyzers . | . . . . . . Garrison Access . | . . . . . . Data Cores Recovered 1 | . 1 . . . . Used . | . . . . . . Hacking Detections 8 | . 1 3 1 2 1 Full Trace Events 2 | . . 1 . 1 . Feedback Events . | . . . . . . Feedback Blocked . | . . . . . . Robot Schematics Acquired . | . . . . . . Robots Built . | . . . . . . Authchips . | . . . . . . Time . | . . . . . . Total Robot Build Rating . | . . . . . . Part Schematics Acquired . | . . . . . . Parts Built . | . . . . . . Authchips . | . . . . . . Time . | . . . . . . Total Part Build Rating . | . . . . . . Parts Repaired 4 | . . 1 . 3 . Time 152 | . . 26 . 126 . Parts Recycled . | . . . . . . Recycled Matter . | . . . . . . Retrieved Matter . | . . . . . . Retrieved Components . | . . . . . . Parts Scanalyzed . | . . . . . . Part Schematics Acquired . | . . . . . . Parts Damaged . | . . . . . . Bothacking | -11 -10 -9 -8 -7 -6 ------------ Run | Yrd Mat Mat Mat Fac Fac Used RIF Installer . | . . . . . . Robots Hacked 2 | . . 1 . 1 . Non-combat 2 | . . 1 . 1 . Combat . | . . . . . . Robot Hacks Applied 3 | . . 2 . 1 . parse_system 1 | . . 1 . . . no_distress 2 | . . 1 . 1 . Relay Couplers Released . | . . . . . . Fabnet Peak Effective % . | . . . . . . Robots Rewired . | . . . . . . Allies Hacked . | . . . . . . Hacks Repelled . | . . . . . . Allies | -11 -10 -9 -8 -7 -6 -------- Run | Yrd Mat Mat Mat Fac Fac Total Allies . | . . . . . . Largest Group . | . . . . . . Highest-Rated Group . | . . . . . . Highest-Rated Ally . | . . . . . . Total Orders . | . . . . . . Ally Attacks . | . . . . . . Total Damage . | . . . . . . Kills . | . . . . . . Allies Corrupted . | . . . . . . Allies Melted . | . . . . . . Intel | -11 -10 -9 -8 -7 -6 ------- Run | Yrd Mat Mat Mat Fac Fac Active Infowar (turns) 6242 | . . . 177 2419 3646 Sensors 6086 | . . . 177 2415 3494 Terrain 669 | . . . . 669 . Jamming 3880 | . . . . 249 3631 Robot Analysis Total . | . . . . . . Derelict Logs Recovered . | . . . . . . Drone Launches . | . . . . . . Drone Recoveries . | . . . . . . Exploration | -11 -10 -9 -8 -7 -6 ------------- Run | Yrd Mat Mat Mat Fac Fac Turns Passed 9111 | 72 299 1127 1295 2419 3899 Spaces Moved 4046 | 50 195 535 691 1143 1432 Core 9 | 5 . . . . 4 Treads . | . . . . . . Legs 998 | 45 195 535 223 . . Wheels 3039 | . . . 468 1143 1428 Hover . | . . . . . . Flight . | . . . . . . Fastest Speed 50 | 50 120 120 95 115 115 Average Speed 126 | 113 120 120 134 116 133 Slowest Speed 1550 | 120 120 120 190 145 1550 Overloaded Moves . | . . . . . . Propulsion Burnouts . | . . . . . . Robots Hopped . | . . . . . . Potential Cave-ins 12 | . . . . 4 8 Cave-ins Triggered 1 | . . . . 1 . Exploration Rate (%) 28 | 4 25 43 47 29 23 Regions Visited 5 Branch Regions . Pre-discovered Areas . | . . . . . . Known Exits Taken 1 | . . . . 1 . Unknown Exits Taken 4 | 1 1 1 1 . . Scrap Searched . | . . . . . . Spaces Dug 89 | . . . 5 11 73 Terrain Destroyed 246 | . . . 22 23 201 Melee 84 | . . . . 11 73 Projectile 22 | . . . 22 . . AOE 140 | . . . . 12 128 Terrain Rammed . | . . . . . . Walls Destroyed . | . . . . . . Machines Disabled . | . . . . . . Actions | -11 -10 -9 -8 -7 -6 --------- Run | Yrd Mat Mat Mat Fac Fac Total 7234 | 62 227 871 908 2070 3096 Wait 2455 | . 12 219 92 722 1410 Move 4040 | 49 194 534 690 1141 1432 Hop . | . . . . . . Pick Up 72 | 6 2 5 18 29 12 Fast Attach 39 | 6 2 5 6 9 11 Attach 39 | . . 6 5 12 16 Detach 12 | . 1 1 2 5 3 Swap 68 | . . 9 15 20 24 Drop 58 | . . 10 4 32 12 Fire 297 | . 16 77 73 75 56 Melee 134 | . . 2 . 12 120 Ram 1 | . . . . 1 . Kick 6 | 1 . 3 2 . . Crush . | . . . . . . Escape Stasis 9 | . . . . 9 . Rewire . | . . . . . . Trap . | . . . . . . Miscellaneous 4 | . . . 1 3 . Route ------- -11/Scrapyard -10/Materials (discovered 2 exits: *Mat / [*Min]) -9/Materials (discovered 3 exits: *Mat / [*Min x2]) -8/Materials -7/Factory (discovered 2 exits: *Fac / *Sto) -6/Factory History --------- Turn | Location | Event 3 | -11/Scrapyard | Discovered new exit (range 15) 73 | -11/Scrapyard | Entered Materials 235 | -10/Materials | Discovered new exit (range 8) 311 | -10/Materials | Build established: Mutant 326 | -10/Materials | Discovered new exit (range 12) 372 | -10/Materials | Entered another Materials area 372 | -9/Materials | Evolved 2 slots: Propulsion x1, Utility x1 508 | -9/Materials | Discovered new exit (range 5) 1004 | -9/Materials | Discovered new exit (range 13) 1242 | -9/Materials | Repaired Aluminum Leg 1418 | -9/Materials | Lost 3 parts (1p1n1w) 1487 | -9/Materials | Discovered new exit (range 9) 1499 | -9/Materials | Entered another Materials area 1499 | -8/Materials | Evolved 2 slots: Utility x2 2761 | -8/Materials | Discovered new exit (range 16) 2794 | -8/Materials | Entered Factory 2794 | -7/Factory | Evolved 2 slots: Propulsion x1, Utility x1 3147 | -7/Factory | Build established: Skirmisher 3747 | -7/Factory | Build established: Mutant 4238 | -7/Factory | Garrison activated, responded to threat 4459 | -7/Factory | Discovered new exit (range 10) 4469 | -7/Factory | Identified exit to Storage 4729 | -7/Factory | Crushed by falling debris 5047 | -7/Factory | Repaired Arm. Huge Wheel 5092 | -7/Factory | Repaired Arm. Huge Wheel 5132 | -7/Factory | Repaired Imp. Light Armor Plating 5205 | -7/Factory | Discovered new exit (range 8) 5212 | -7/Factory | Identified exit to Factory 5213 | -7/Factory | Entered another Factory area 5213 | -6/Factory | Evolved 2 slots: Power x1, Utility x1 5908 | -6/Factory | Garrison activated, responded to threat 6642 | -6/Factory | Found Prototype Launcher 6642 | -6/Factory | Identified Scatter Rocket Array 6647 | -6/Factory | Found Scatter Rocket Array 6649 | -6/Factory | Found Scatter Rocket Array 6652 | -6/Factory | Found Scatter Rocket Array 6893 | -6/Factory | Lost 5 parts (1p1n1u2w) 8879 | -6/Factory | Lost 7 parts (2p1n2u2w) 8947 | -6/Factory | Core integrity fell below 50% 9001 | -6/Factory | Lost 5 parts (2n3u) 9083 | -6/Factory | Core integrity fell below 20% 9098 | -6/Factory | Lost 8 parts (1p3n3u1w) 9112 | -6/Factory | Destroyed by P-60 Hacker with Shock Rifle Last Messages --------------- 09010_ Penetrated by Slug. 09013_ Wheel destroyed. 09017_ Acquired Lgt. Angular Momentum Engine. 09018_ H-66 Slayer destroyed. 09019_ Acquired 46 matter. 09022_ Y-54 Guardian Lgt. Treads severed. 09023_ Imp. Sensor Array destroyed. 09025_ System corrupted: Matter fused (-6). 09025_ Y-54 Guardian destroyed. 09027_ Hrd. Medium Armor Plating destroyed. 09034_ Com. Wheel destroyed. 09034_ Lgt. Angular Momentum Engine destroyed. 09040_ Wheel destroyed. 09042_ Y-54 Guardian destroyed. 09052_ System corrupted: Component data lost. 09067_ Hrd. Medium Armor Plating destroyed. 09077_ System corrupted: Energy discharge (-31). 09106_ Destroyed Gravmag System. 09108_ UCKKY1RA V#C :L6O D%RI%RR1#WJJGHLYXZN2V 09112_ Destroyed Shock Rifle. Map ----- +----------------------------------------------------+ | ?# # # ????# #??????? | | ?# ?????# #??????? | | ?## # #?????# #??????? | | ## = * #?????# #??????? | | # *[=[!%! ####### #??????? | | ## [[ =[ ????? | | ?# [ = = #######+#######? | | ## * [ ##### #? | | #" ## # ## # ?? | | ########## # # ??? | | ???????## # ! ??? | | ???????# # # ???? | | ???????# # #####+???? | | ???????## ^ # #??? | | ???????# # #??? | | ???????# % # # # #! # #??? | | ???????# # """ #]!^ # #??? | | ???????# # "Y" #]! # #??? | | ???????# " " # # #??? | | ?????? # # #??? | | ?????## ! # = + #??? | | ??????# # #%#??? | | ??????# #########=#??? | | ????? =[#??? | | ????? #### ##############p###? | | ????! #???""????????????#@=%!#? | | ???? #????""????????????#[][!#? | | ????????????????????????# ! #? | | ????????????????????????#! ! #? | | ????????????????????????# #? | | ????????????????????????#/ !#? | | ????????????????????????# #? | | ????????????????????????# * #? | | ????????????????????????# !#? | | ????????????????????????######? | | ??????????????????????????????? | | ??????????????????????????????? | | ??????????????????????????????? | | ??????????????????????????????? | | ??????????????????????????????? | | ??????????????????????????????? | | ??????????????????????????????? | | ??????????????????????????????? | | ??????????????????????????????? | | ??????????????????????????????? | | ??????????????????????????????? | | ??????????????????????????????? | | ??????????????????????????????? | | ??????????????????????????????? | | ??????????????????????????????? | +----------------------------------------------------+ Best States ------------- Heat Dissipation 64 Coolant Potential 65 Energy Generation 31 Energy Capacity 500 Matter Stores 300 Matter Capacity 300 Sight Range 16 Robot Scan Range 16 Terrain Scan Range 16 Terrain Scan Density 10 Jamming Range 12 Armor Coverage 450 Resistance: KI 30 Propulsion Shielding 33 Utility Shielding 33 Evasion (%) 55 Targeting Accuracy 5 Launcher Accuracy 20 Target Analysis 5 Core Analysis 6 Particle Charging 20 Offensive Hacking 12 Item Schematics ----------------- None Robot Schematics ------------------ None Fabricated ------------ Nothing Repaired ---------- Aluminum Leg | 22% | -9/Materials Arm. Huge Wheel | 10% | -7/Factory Arm. Huge Wheel | 2% | -7/Factory Imp. Light Armor Plating | 13% | -7/Factory Alien Tech Used ----------------- None Achievements -------------- Part-time Excavator Unlikely Earthworm Challenges ------------ None Game ------ Seed SchematicShadeLauncher Manual? 0 Play Time 01:28:10 Cumulative 13.2 hours Start 2025.10.04 @ 14:51:17 End 2025.10.04 @ 16:21:36 Sessions 1 Manual Loads 0 Difficulty Rogue Special Mode None Game No. 12 Rogue 12 Adventurer 0 Explorer 0 Win Type - Total 0 Types 0/0/0/0/0/0/0/0/0/0 Lore% 2 Gallery% 17 Achievement% 12 Wizard Run 0 Options --------- Layout 0 ASCII 0 Keyboard 1 Movement Numpad Keybinds 0 Fullscreen 1 Font 24/Smallcaps Map View 76x50 Zoom Use 0% Tactical HUD 1 Map Filters NONE Filters NONE Steam 1 RUN: cd18b94a-8412-4106-8506-47f95e3afb8e